fUST/lending_fUST_20250904
["ID","MTS","AMOUNT","RATE_DAILY","PERIOD"]
[383474236,1756951893893,300.0,0.00013065,2]
[383474237,1756951902464,2034.11075601,0.00013065,2]
[383474238,1756951911041,2034.11075601,0.00013065,2]
[383474239,1756951926467,1815.38334887,0.00013065,2]
[383474240,1756951926490,218.72740714,0.00013065,2]
[383474241,1756951934840,2034.11075601,0.00013065,2]
[383474242,1756951953113,2034.11075601,0.00013065,2]
[383474243,1756951977691,300.0,0.00013193,2]
[383474244,1756951991142,251.07,0.00025,30]
[383474245,1756952000417,300.0,0.00013193,2]
[383474246,1756952007788,5113.06108084,0.00013052,2]
[383474247,1756952007810,4886.93891916,0.00013052,2]
[383474248,1756952022709,300.0,0.00013193,2]
[383474249,1756952044845,300.0,0.00013193,2]
[383474250,1756952068126,300.0,0.00013193,2]
[383474251,1756952091663,300.0,0.00013193,2]
[383474252,1756952114289,300.0,0.00013193,2]
[383474253,1756952136339,300.0,0.00013193,2]
[383474254,1756952144647,300.0,0.00013193,2]
[383474255,1756952351648,220.74219554,0.00013154,2]
[383474256,1756952360130,220.74219554,0.00013154,2]
[383474257,1756952368703,220.74219554,0.00013154,2]
[383474258,1756952376576,220.74219554,0.00013154,2]
[383474259,1756952384828,220.74219554,0.00013154,2]
[383474260,1756952393217,220.74219554,0.00013154,2]
[383474261,1756952401873,220.74219554,0.00013154,2]
[383474262,1756952409923,220.74219554,0.00013154,2]
[383474263,1756952418907,220.74219554,0.00013154,2]
[383474264,1756952427308,220.74219554,0.00013154,2]
[383474265,1756952436058,220.74219554,0.00013154,2]
[383474266,1756952444129,220.74219554,0.00013154,2]
[383474267,1756952452395,220.74219554,0.00013154,2]
[383474268,1756952460528,143.42253882,0.00013154,2]
[383474269,1756952460554,77.31965672,0.00013154,2]
[383474270,1756952468770,220.74219554,0.00013154,2]
[383474271,1756952477723,220.74219554,0.00013154,2]
[383474272,1756952486935,220.74219554,0.00013154,2]
[383474273,1756952494889,220.74219554,0.00013154,2]
[383474274,1756952503051,220.74219554,0.00013154,2]
[383474275,1756952511538,220.74219554,0.00013154,2]
[383474276,1756952519908,220.74219554,0.00013154,2]
[383474277,1756952527935,220.74219554,0.00013154,2]
[383474278,1756952537453,220.74219554,0.00013154,2]
[383474279,1756952545382,220.74219554,0.00013154,2]
[383474280,1756952560948,220.74219554,0.00013154,2]
[383474281,1756952569096,220.74219554,0.00013154,2]
[383474282,1756952584348,220.74219554,0.00013154,2]
[383474283,1756952592332,220.74219554,0.00013154,2]
[383474284,1756952608022,220.74219554,0.00013154,2]
[383474285,1756952617270,220.74219554,0.00013154,2]
[383474286,1756952633098,220.74219554,0.00013154,2]
[383474287,1756952641684,220.74219554,0.00013154,2]
[383474288,1756952657528,220.74219554,0.00013154,2]
[383474289,1756952665435,220.74219554,0.00013154,2]
[383474291,1756952681910,220.74219554,0.00013154,2]
[383474292,1756952689830,220.74219554,0.00013154,2]
[383474293,1756952705046,220.74219554,0.00013154,2]
[383474294,1756952708423,313.9889965,6.579e-05,2]
[383474295,1756952713569,220.74219554,0.00013154,2]
[383474296,1756952729853,220.74219554,0.00013154,2]
[383474297,1756952738304,220.74219554,0.00013154,2]
[383474299,1756952754940,220.74219554,0.00013154,2]
[383474300,1756952761191,442.81678845,0.00013154,2]
[383474302,1756952762908,220.74219554,0.00013154,2]
[383474304,1756952778220,220.74219554,0.00013154,2]
[383474306,1756952786754,220.74219554,0.00013154,2]
[383474307,1756952802628,220.74219554,0.00013154,2]
[383474309,1756952810585,220.74219554,0.00013154,2]
[383474310,1756952826153,220.74219554,0.00013154,2]
[383474311,1756952834551,220.74219554,0.00013154,2]
[383474312,1756952848147,513.73,0.00012329,2]
[383474313,1756952850541,220.74219554,0.00013154,2]
[383474314,1756952858811,563.31,0.00012329,2]
[383474315,1756952858875,220.74219554,0.00013154,2]
[383474316,1756952869275,142.12551889,0.00012329,2]
[383474317,1756952869303,327.29448111,0.00012329,2]
[383474318,1756952874931,220.74219554,0.00013154,2]
[383474319,1756952879829,391.19,0.00012329,2]
[383474320,1756952883103,220.74219554,0.00013154,2]
[383474321,1756952890353,325.99,0.00012329,2]
[383474322,1756952896208,8514.05112781,0.000125,2]
[383474323,1756952896233,2943.49628766,0.000125,2]
[383474324,1756952899025,220.74219554,0.00013154,2]
[383474325,1756952900748,297.15,0.00012329,2]
[383474326,1756952907859,220.74219554,0.00013154,2]
[383474327,1756952909778,284.55378609,0.0001,2]
[383474328,1756952910323,992.53000571,0.00013187,2]
[383474329,1756952910797,479.71818749,0.00013187,2]
[383474330,1756952911277,247.63,0.00012329,2]
[383474331,1756952911866,359.78864062,0.00013187,2]
[383474332,1756952913336,269.84148047,0.00013187,2]
[383474333,1756952914509,202.38111035,0.00013187,2]
[383474334,1756952915488,151.78583276,0.00013187,2]
[383474335,1756952919679,1000.0,0.0001,2]
[383474336,1756952921674,206.36,0.00012329,2]
[383474337,1756952923910,220.74219554,0.00013154,2]
[383474338,1756952925668,1902.54808223,0.0001,2]
[383474339,1756952925690,10000.01,0.0001,2]
[383474340,1756952925712,5730.79088031,0.0001,2]
[383474342,1756952927411,1725.06670648,0.0001,2]
[383474343,1756952932128,171.96,0.00012329,2]
[383474344,1756952932797,220.74219554,0.00013154,2]
[383474345,1756952942562,859.85,0.00012329,2]
[383474346,1756952946929,1291.60021767,0.00013054,2]
[383474347,1756952946952,10000.01,0.00013054,2]
[383474348,1756952946974,10000.01,0.00013054,2]
[383474349,1756952946996,10000.01,0.00013054,2]
[383474350,1756952947019,10000.01,0.00013054,2]
[383474351,1756952947040,10000.01,0.00013054,2]
[383474352,1756952947061,10000.01,0.00013054,2]
[383474353,1756952947083,2936.90046943,0.00013054,2]
[383474354,1756952948529,220.74219554,0.00013154,2]
[383474355,1756952956489,220.74219554,0.00013154,2]
[383474356,1756952962618,203.94560055,0.00013187,2]
[383474357,1756952963255,185.51,0.00012329,2]
[383474358,1756952965620,220.74219554,0.00013154,2]
[383474359,1756952973858,154.59,0.00012329,2]
[383474360,1756952974431,220.74219554,0.00013154,2]
[383474361,1756952974565,1000.0,0.00013054,2]
[383474362,1756952983274,220.74219554,0.00013154,2]
[383474363,1756952984314,772.96,0.00012329,2]
[383474364,1756952991658,220.74219554,0.00013154,2]
[383474365,1756953000003,220.74219554,0.00013154,2]
[383474366,1756953008239,220.74219554,0.00013154,2]
[383474367,1756953023760,220.74219554,0.00013154,2]
[383474369,1756953031684,220.74219554,0.00013154,2]
[383474397,1756953032705,-220.74219554,0.00013287,2]
[383474400,1756953032715,-109.24409572,0.00013296,2]
[383474403,1756953032726,-1163.90975428,0.00013296,2]
[383474406,1756953032736,-666.0,0.00013298,2]
[383474409,1756953032746,-127.55581335,0.00013302,2]
[383474413,1756953032757,-576.33285354,0.00013302,2]
[383474427,1756953038614,-151.0,0.00013296,2]
[383474428,1756953038624,-1073.88,0.00013302,2]
[383474460,1756953048794,-2564.54020694,0.00013302,2]
[383474461,1756953048828,2538.68197462,0.00013169,2]
[383474462,1756953048851,267.82752219,0.00013169,2]
[383474463,1756953055853,241.96928987,0.00013169,2]
[383474464,1756953072245,241.96928987,0.00013169,2]
[383474465,1756953080173,241.96928987,0.00013169,2]
[383474466,1756953096199,241.96928987,0.00013169,2]
[383474467,1756953104138,241.96928987,0.00013169,2]
[383474468,1756953109799,10000.0,0.00025,30]
[383474469,1756953120827,241.96928987,0.00013169,2]
[383474470,1756953128889,241.96928987,0.00013169,2]
[383474471,1756953144834,241.96928987,0.00013169,2]
[383474472,1756953153358,241.96928987,0.00013169,2]
[383474473,1756953157604,596.384,0.00029755,120]
[383474474,1756953168851,5000.0,0.0001525,6]
[383474475,1756953178070,5000.0,0.0001525,6]
[383474476,1756953193578,5000.0,0.0001525,6]
[383474477,1756953201545,5000.0,0.0001525,6]
[383474478,1756953217195,5000.0,0.0001525,6]
[383474479,1756953225245,5000.0,0.0001525,6]
[383474480,1756953241120,241.96928987,0.00013169,2]
[383474481,1756953250318,241.96928987,0.00013169,2]
[383474483,1756953265834,241.96928987,0.00013169,2]
[383474485,1756953272426,3071.0,0.00025,30]
[383474486,1756953274098,241.96928987,0.00013169,2]
[383474487,1756953290675,5000.0,0.0001525,6]
[383474488,1756953298581,5000.0,0.0001525,6]
[383474489,1756953314680,5000.0,0.0001525,6]
[383474490,1756953323003,5000.0,0.0001525,6]
[383474491,1756953339330,241.96928987,0.00013169,2]
[383474492,1756953347242,241.96928987,0.00013169,2]
[383474493,1756953362802,241.96928987,0.00013169,2]
[383474494,1756953371023,241.96928987,0.00013169,2]
[383474495,1756953386840,241.96928987,0.00013169,2]
[383474496,1756953395501,241.96928987,0.00013169,2]
[383474497,1756953411519,241.96928987,0.00013169,2]
[383474498,1756953435138,241.96928987,0.00013037,2]
[383474499,1756953457784,241.96928987,0.00013037,2]
[383474500,1756953480122,241.96928987,0.00013037,2]
[383474501,1756953503296,241.96928987,0.00013037,2]
[383474502,1756953525591,241.96928987,0.00013037,2]
[383474503,1756953548298,159.50316198,0.00012973,2]
[383474504,1756953570982,159.50316198,0.00012973,2]
[383474505,1756953594380,159.50316198,0.00012973,2]
[383474506,1756953602274,159.50316198,0.00012711,2]
[383474507,1756953604563,159.50316198,0.00012973,2]
[383474508,1756953619976,159.50316198,0.00012973,2]
[383474509,1756953628568,159.50316198,0.00012973,2]
[383474510,1756953646088,159.50316198,0.00012973,2]
[383474511,1756953654408,159.50316198,0.00012973,2]
[383474512,1756953662026,159.50316198,0.00012711,2]
[383474513,1756953666969,159.50316198,0.00013077,2]
[383474514,1756953670345,994.0,0.00012983,2]
[383474515,1756953678959,994.0,0.00012983,2]
[383474518,1756953695586,994.0,0.00012983,2]
[383474521,1756953703906,994.0,0.00012983,2]
[383474524,1756953719504,994.0,0.00012983,2]
[383474526,1756953727987,994.0,0.00012983,2]
[383474529,1756953748642,994.0,0.00012983,2]
[383474532,1756953757651,77.62876887,0.00012983,2]
[383474533,1756953757673,916.37123113,0.00012983,2]
[383474544,1756953773196,994.0,0.00012983,2]
[383474560,1756953781131,994.0,0.00012983,2]
[383474570,1756953796482,694.0,0.00012983,2]
[383474573,1756953805138,694.0,0.00012983,2]
[383474580,1756953821170,694.0,0.00012983,2]
[383474583,1756953829103,694.0,0.00012983,2]
[383474586,1756953845600,694.0,0.00012983,2]
[383474587,1756953853641,863.42568101,0.00012983,2]
[383474589,1756953871003,994.0,0.00012983,2]
[383474593,1756953894579,994.0,0.00012983,2]
[383474605,1756953917954,774.21308786,0.00012983,2]
[383474606,1756953917983,219.78691214,0.00012983,2]
[383474609,1756953941128,994.0,0.00012983,2]
[383474611,1756953965077,994.0,0.00012983,2]
[383474612,1756953988701,303.5074483,0.00012983,2]
[383474622,1756954155137,-694.0,0.00013114,2]
[383474623,1756954155162,-300.0,0.00013114,2]
[383474624,1756954155189,-538.60488724,0.00013114,2]
[383474660,1756954231887,-300.0,0.00013114,2]
[383474661,1756954231896,-127.39511276,0.00013114,2]
[383474662,1756954231906,-6731.85543086,0.00013115,2]
[383475026,1756954246179,-785.26843008,0.00013115,2]
[383475221,1756954279717,500.0,7.1e-07,120]
[383475222,1756954288717,750.0,7.1e-07,120]
[383475223,1756954295945,1000.0,7.1e-07,120]
[383475224,1756954303125,1000.0,7.1e-07,120]
[383475225,1756954313399,1000.0,7.1e-07,120]
[383475226,1756954320771,1000.0,7.1e-07,120]
[383475227,1756954328380,1000.0,7.1e-07,120]
[383475230,1756954336140,1000.0,7.1e-07,120]
[383475231,1756954342856,500.0,7.1e-07,120]
[383475233,1756954590456,188.22,0.00027397,120]
[383475234,1756954684543,5000.0,0.0001525,6]
[383475235,1756954685880,221.9975307,0.00012722,2]
[383475236,1756954707303,300.0,0.00012983,2]
[383475237,1756954729824,300.0,0.00012983,2]
[383475239,1756954733517,241.9692898,0.0001262,2]
[383475247,1756954744258,6424.74881906,0.00012673,2]
[383475248,1756954744282,7296.67128994,0.00012673,2]
[383475250,1756954753910,300.0,0.00012983,2]
[383475251,1756954777042,300.0,0.00012983,2]
[383475252,1756954800406,300.0,0.00012983,2]
[383475257,1756954823117,220.0,0.00013099,2]
[383475258,1756954834451,1632.0,0.00029777,60]
[383475259,1756954838715,1000.0,0.00013099,2]
[383475260,1756954847120,583.33871006,0.00013099,2]
[383475261,1756954847144,376.66128994,0.00013099,2]
[383475262,1756954862941,153.35749829,0.00012984,2]
[383475263,1756954886283,151.0,0.00012984,2]
[383475264,1756954909200,151.0,0.00012984,2]
[383475265,1756954932276,151.0,0.00012984,2]
[383475266,1756954955083,151.0,0.00012984,2]
[383475267,1756954978203,151.0,0.00012984,2]
[383475268,1756954984711,666.0,0.00012723,2]
[383475269,1756955001518,151.0,0.00012984,2]
[383475270,1756955020110,1452.0223817,0.00012723,2]
[383475271,1756955024755,151.0,0.00012984,2]
[383475272,1756955048415,151.0,0.00012984,2]
[383475273,1756955071815,151.0,0.00012984,2]
[383475275,1756955094838,151.0,0.00012984,2]
[383475276,1756955118955,151.0,0.00012984,2]
[383475277,1756955142645,151.0,0.00012984,2]
[383475278,1756955165581,151.0,0.00012984,2]
[383475279,1756955190453,151.0,0.00012984,2]
[383475281,1756955318647,1000.0,0.00012697,2]
[383475338,1756955438045,-151.0,0.00013115,2]
[383475340,1756955438056,-377.75248936,0.00013598,2]
[383475342,1756955438066,-300.0,0.00013696,2]
[383475344,1756955438075,-500.0,0.00013697,2]
[383475346,1756955438085,-500.0,0.00013697,2]
[383475348,1756955438095,-500.0,0.00013697,2]
[383475350,1756955438104,-534.11075601,0.00013697,2]
[383475352,1756955438114,-500.0,0.00013697,2]
[383475354,1756955438124,-500.0,0.00013697,2]
[383475356,1756955438134,-500.0,0.00013697,2]
[383475358,1756955438143,-384.91178522,0.00013697,2]
[383475360,1756955438153,-500.0,0.00013697,2]
[383475362,1756955438162,-500.0,0.00013697,2]
[383475364,1756955438172,-500.0,0.00013697,2]
[383475366,1756955438182,-480.0,0.00013698,2]
[383475368,1756955438192,-480.0,0.00013698,2]
[383475370,1756955438201,-540.92859865,0.00013698,2]
[383475372,1756955438211,-480.0,0.00013698,2]
[383475374,1756955438221,-480.0,0.00013698,2]
[383475376,1756955438231,-410.77386914,0.00013698,2]
[383475378,1756955438241,-522.06738571,0.00013698,2]
[383475380,1756955438251,-480.0,0.00013698,2]
[383475382,1756955438262,-480.0,0.00013698,2]
[383475384,1756955438272,-164.976375,0.00013698,2]
[383475386,1756955438281,-481.77927142,0.00013698,2]
[383475388,1756955438294,-483.97995353,0.00013698,2]
[383475391,1756955438305,-480.0,0.00013698,2]
[383475392,1756955438314,-487.68985371,0.00013698,2]
[383475394,1756955438324,-485.80877706,0.00013698,2]
[383475397,1756955438335,-482.40240742,0.00013698,2]
[383475398,1756955438346,-485.60463438,0.00013698,2]
[383475400,1756955438356,-245.31603694,0.00013698,2]
[383475403,1756955438366,-482.85380612,0.00013698,2]
[383475404,1756955438375,-480.0,0.00013698,2]
[383475406,1756955438385,-492.33394045,0.00013698,2]
[383475408,1756955438394,-482.5963931,0.00013698,2]
[383475410,1756955438403,-1003.69499821,0.00013698,2]
[383475412,1756955438415,-481.1728235,0.00013698,2]
[383475414,1756955438427,-482.67254381,0.00013698,2]
[383475416,1756955438436,-481.94000333,0.00013698,2]
[383475418,1756955438448,-482.86235315,0.00013698,2]
[383475420,1756955438457,-482.08580054,0.00013698,2]
[383475422,1756955438468,-484.6437463,0.00013698,2]
[383475424,1756955438477,-481.8922008,0.00013698,2]
[383475426,1756955438487,-487.99357753,0.00013698,2]
[383475428,1756955438496,-486.45800204,0.00013698,2]
[383475430,1756955438506,-482.25398853,0.00013698,2]
[383475432,1756955438516,-480.0,0.00013698,2]
[383475434,1756955438528,-480.0,0.00013698,2]
[383475436,1756955438538,-480.93593768,0.00013698,2]
[383475438,1756955438549,-481.63672382,0.00013698,2]
[383475440,1756955438559,-481.17668834,0.00013698,2]
[383475442,1756955438568,-482.69700786,0.00013698,2]
[383475444,1756955438578,-485.30833844,0.00013698,2]
[383475446,1756955438587,-483.7357212,0.00013698,2]
[383475448,1756955438597,-483.06744069,0.00013698,2]
[383475449,1756955438607,-485.26625021,0.00013698,2]
[383475452,1756955438617,-487.21113198,0.00013698,2]
[383475454,1756955438628,-482.25893465,0.00013698,2]
[383475456,1756955438639,-481.70194987,0.00013698,2]
[383475458,1756955438654,-480.0,0.00013698,2]
[383475460,1756955438663,-480.0,0.00013698,2]
[383475462,1756955438673,-422.54869872,0.00013698,2]
[383475464,1756955438682,-480.86290007,0.00013698,2]
[383475466,1756955438692,-482.79201266,0.00013698,2]
[383475468,1756955438702,-480.0,0.00013698,2]
[383475470,1756955438711,-480.0,0.00013698,2]
[383475472,1756955438721,-481.17574132,0.00013698,2]
[383475474,1756955438730,-486.4805264,0.00013698,2]
[383475476,1756955438740,-480.0,0.00013698,2]
[383475478,1756955438749,-485.63002935,0.00013698,2]
[383475480,1756955438759,-481.40989313,0.00013698,2]
[383475482,1756955438769,-480.0,0.00013698,2]
[383475484,1756955438779,-482.15940905,0.00013698,2]
[383475486,1756955438788,-487.15542687,0.00013698,2]
[383475488,1756955438798,-616.55440778,0.00013698,2]
[383475490,1756955438807,-480.0,0.00013698,2]
[383475492,1756955438816,-480.0,0.00013698,2]
[383475494,1756955438825,-481.27704567,0.00013698,2]
[383475496,1756955438835,-480.0,0.00013698,2]
[383475498,1756955438844,-481.86313016,0.00013698,2]
[383475500,1756955438853,-480.87637436,0.00013698,2]
[383475502,1756955438862,-568.06050534,0.00013698,2]
[383475504,1756955438871,-481.11336034,0.00013698,2]
[383475506,1756955438881,-482.13582368,0.00013698,2]
[383475508,1756955438891,-480.0,0.00013698,2]
[383475510,1756955438901,-481.18344575,0.00013698,2]
[383475512,1756955438911,-555.60365505,0.00013698,2]
[383475514,1756955438921,-481.58090109,0.00013698,2]
[383475516,1756955438931,-496.44290757,0.00013698,2]
[383475518,1756955438940,-482.16234441,0.00013698,2]
[383475520,1756955438949,-486.97103251,0.00013698,2]
[383475522,1756955438959,-481.61701115,0.00013698,2]
[383475524,1756955438968,-483.05135985,0.00013698,2]
[383475526,1756955438977,-480.77763394,0.00013698,2]
[383475528,1756955438987,-484.25296206,0.00013698,2]
[383475530,1756955438996,-485.00478162,0.00013698,2]
[383475531,1756955439007,-480.0,0.00013698,2]
[383475533,1756955439016,-480.0,0.00013698,2]
[383475535,1756955439025,-482.31000798,0.00013698,2]
[383475537,1756955439037,-482.46527015,0.00013698,2]
[383475540,1756955439047,-485.26854062,0.00013698,2]
[383475542,1756955439056,-587.49313863,0.00013698,2]
[383475544,1756955439066,-480.0,0.00013698,2]
[383475546,1756955439075,-480.0,0.00013698,2]
[383475548,1756955439086,-549.04699028,0.00013698,2]
[383475550,1756955439095,-485.23962833,0.00013698,2]
[383475552,1756955439104,-480.0,0.00013698,2]
[383475554,1756955439114,-480.0,0.00013698,2]
[383475556,1756955439123,-480.69404235,0.00013698,2]
[383475558,1756955439133,-281.21586369,0.00013698,2]
[383475560,1756955439142,-480.0,0.00013698,2]
[383475562,1756955439152,-437.60544357,0.00013698,2]
[383475564,1756955439161,-480.83753717,0.00013698,2]
[383475566,1756955439170,-480.0,0.00013698,2]
[383475568,1756955439180,-483.56826724,0.00013698,2]
[383475570,1756955439189,-481.31611606,0.00013698,2]
[383475572,1756955439198,-481.59581995,0.00013698,2]
[383475574,1756955439208,-480.0,0.00013698,2]
[383475576,1756955439218,-486.06173927,0.00013698,2]
[383475578,1756955439227,-481.08915461,0.00013698,2]
[383475580,1756955439237,-480.0,0.00013698,2]
[383475582,1756955439246,-481.57912289,0.00013698,2]
[383475584,1756955439255,-485.09858304,0.00013698,2]
[383475586,1756955439265,-286.88892942,0.00013698,2]
[383475588,1756955439275,-481.58264077,0.00013698,2]
[383475590,1756955439285,-481.28695386,0.00013698,2]
[383475592,1756955439295,-480.0,0.00013698,2]
[383475594,1756955439305,-485.72627738,0.00013698,2]
[383475611,1756955439459,-482.83760743,0.00013698,2]
[383475613,1756955439469,-480.0,0.00013698,2]
[383475616,1756955439479,-481.62868839,0.00013698,2]
[383475618,1756955439489,-480.85281871,0.00013698,2]
[383475620,1756955439499,-501.73881723,0.00013698,2]
[383475622,1756955439509,-480.68170388,0.00013698,2]
[383475624,1756955439518,-484.49243425,0.00013698,2]
[383475626,1756955439528,-490.60601439,0.00013698,2]
[383475628,1756955439538,-480.0,0.00013698,2]
[383475630,1756955439549,-482.7895164,0.00013698,2]
[383475632,1756955439559,-372.77923557,0.00013698,2]
[383475634,1756955439570,-482.65764935,0.00013698,2]
[383475636,1756955439580,-480.0,0.00013698,2]
[383475638,1756955439589,-480.0,0.00013698,2]
[383475640,1756955439603,-480.95323133,0.00013698,2]
[383475642,1756955439613,-483.5146819,0.00013698,2]
[383475644,1756955439622,-480.0,0.00013698,2]
[383475646,1756955439632,-480.0,0.00013698,2]
[383475648,1756955439644,-480.73231918,0.00013698,2]
[383475650,1756955439659,-484.34133045,0.00013698,2]
[383475652,1756955439669,-483.21878514,0.00013698,2]
[383475654,1756955439679,-500.33776586,0.00013698,2]
[383475656,1756955439688,-483.91504255,0.00013698,2]
[383475658,1756955439699,-480.97747716,0.00013698,2]
[383475660,1756955439709,-481.22458846,0.00013698,2]
[383475662,1756955439724,-482.85819562,0.00013698,2]
[383475665,1756955439733,-486.82541058,0.00013698,2]
[383475668,1756955439743,-482.95054744,0.00013698,2]
[383475670,1756955439753,-500.0,0.00013698,2]
[383475672,1756955439763,-506.524531,0.00013698,2]
[383475674,1756955439773,-496.52666908,0.00013698,2]
[383475676,1756955439785,-445.82257111,0.00013698,2]
[383475678,1756955439795,-484.0630088,0.00013698,2]
[383475680,1756955439804,-480.0,0.00013698,2]
[383475681,1756955439814,-480.0,0.00013698,2]
[383475683,1756955439824,-480.0,0.00013698,2]
[383475685,1756955439834,-482.55823622,0.00013698,2]
[383475688,1756955439844,-480.78620108,0.00013698,2]
[383475690,1756955439854,-483.60289907,0.00013698,2]
[383475692,1756955439863,-494.93605195,0.00013698,2]
[383475694,1756955439873,-480.0,0.00013698,2]
[383475696,1756955439883,-487.96986451,0.00013698,2]
[383475698,1756955439892,-270.05199824,0.00013698,2]
[383475700,1756955439902,-481.72635641,0.00013698,2]
[383475702,1756955439912,-482.99241214,0.00013698,2]
[383475704,1756955439921,-492.71846745,0.00013698,2]
[383475705,1756955439930,-488.64954833,0.00013698,2]
[383475706,1756955439940,-480.0,0.00013698,2]
[383475708,1756955439949,-484.99145574,0.00013698,2]
[383475710,1756955439959,-483.46564549,0.00013698,2]
[383475712,1756955439968,-480.32021663,0.00013698,2]
[383475714,1756955439978,-480.0,0.00013698,2]
[383475716,1756955439987,-481.327209,0.00013698,2]
[383475718,1756955439996,-483.51452311,0.00013698,2]
[383475720,1756955440006,-486.18132707,0.00013698,2]
[383475722,1756955440016,-480.0,0.00013698,2]
[383475724,1756955440025,-480.0,0.00013698,2]
[383475726,1756955440036,-485.54623985,0.00013698,2]
[383475728,1756955440046,-480.0,0.00013698,2]
[383475730,1756955440056,-488.62785363,0.00013698,2]
[383475732,1756955440066,-482.61977161,0.00013698,2]
[383475734,1756955440076,-486.05964523,0.00013698,2]
[383475736,1756955440085,-480.0,0.00013698,2]
[383475738,1756955440095,-506.94477664,0.00013698,2]
[383475740,1756955440106,-500.75832586,0.00013698,2]
[383475742,1756955440115,-481.80341952,0.00013698,2]
[383475744,1756955440125,-484.30300749,0.00013698,2]
[383475746,1756955440135,-481.7003316,0.00013698,2]
[383475748,1756955440144,-480.95597457,0.00013698,2]
[383475750,1756955440154,-480.0,0.00013698,2]
[383475752,1756955440163,-151.0,0.00013698,2]
[383475754,1756955440173,-482.05700892,0.00013698,2]
[383475756,1756955440183,-400.40224245,0.00013698,2]
[383475758,1756955440192,-496.72277119,0.00013698,2]
[383475760,1756955440201,-484.10742305,0.00013698,2]
[383475762,1756955440211,-481.10919985,0.00013698,2]
[383475764,1756955440222,-487.30312577,0.00013698,2]
[383475766,1756955440232,-488.99564334,0.00013698,2]
[383475768,1756955440241,-470.59322463,0.00013698,2]
[383475770,1756955440250,-481.94199218,0.00013698,2]
[383475772,1756955440259,-484.65853683,0.00013698,2]
[383475774,1756955440269,-506.48964671,0.00013698,2]
[383475776,1756955440279,-483.98627919,0.00013698,2]
[383475777,1756955440289,-480.0,0.00013698,2]
[383475778,1756955440298,-482.57797156,0.00013698,2]
[383475779,1756955440307,-163.60049803,0.00013698,2]
[383475780,1756955440316,-482.74724981,0.00013698,2]
[383475781,1756955440325,-487.581954,0.00013698,2]
[383475782,1756955440334,-446.12599517,0.00013698,2]
[383475783,1756955440343,-492.21279438,0.00013698,2]
[383475784,1756955440353,-491.15736958,0.00013698,2]
[383475785,1756955440362,-499.77083628,0.00013698,2]
[383475786,1756955440371,-510.99537417,0.00013698,2]
[383475787,1756955440381,-510.53779726,0.00013698,2]
[383475788,1756955440390,-485.23,0.00013698,2]
[383475789,1756955440400,-483.72518733,0.00013698,2]
[383475790,1756955440409,-481.75935862,0.00013698,2]
[383475791,1756955440418,-482.66486813,0.00013698,2]
[383475792,1756955440427,-481.94247589,0.00013698,2]
[383475793,1756955440437,-482.97016177,0.00013698,2]
[383475794,1756955440446,-480.0,0.00013698,2]
[383475795,1756955440456,-452.50210528,0.00013698,2]
[383475796,1756955440465,-1327.33,0.00013698,2]
[383475797,1756955440474,-481.51188764,0.00013698,2]
[383475798,1756955440484,-484.01874525,0.00013698,2]
[383475799,1756955440493,-514.25642925,0.00013698,2]
[383475800,1756955440503,-487.73288488,0.00013698,2]
[383475801,1756955440512,-486.05750112,0.00013698,2]
[383475802,1756955440521,-480.0,0.00013698,2]
[383475803,1756955440531,-489.80530334,0.00013698,2]
[383475804,1756955440540,-298.87230205,0.00013698,2]